bitfinex/quotes_SOLUSD_20250126
["timestamp","ask_amount","ask_price","bid_price","bid_amount"]
[1737873419968,23.776884,258.41,258.36,1.0]
[1737873420268,6.73367136,258.37,258.36,1.0]
[1737873420449,6.73367136,258.37,258.34,1.0]
[1737873420843,10.60417136,258.37,258.34,1.0]
[1737873421440,6.73367136,258.35,258.34,1.0]
[1737873422965,10.60437136,258.35,258.32,1.0]
[1737873423270,6.73367136,258.33,258.32,1.0]
[1737873423851,80.9,258.32,258.25,1.0]
[1737873424040,6.73367136,258.29,258.25,1.0]
[1737873424668,80.9,258.31,258.24,0.03]
[1737873424669,6.73367136,258.27,258.24,0.03]
[1737873424853,6.73367136,258.27,258.25,1.0]
[1737873425051,87.63367136,258.31,258.28,1.0]
[1737873425657,87.63367136,258.31,258.3,1.0]
[1737873426378,87.63367136,258.31,258.28,1.0]
[1737873428161,80.9,258.3,258.28,1.0]
[1737873429958,80.9,258.29,258.28,1.0]
[1737873430171,6.73367136,258.37,258.35,1.0]
[1737873430476,80.9,258.36,258.33,1.0]
[1737873430900,80.9,258.36,258.35,1.0]
[1737873431565,80.9,258.36,258.33,1.0]
[1737873431752,84.7706,258.36,258.33,1.0]
[1737873431956,6.73367136,258.35,258.33,1.0]
[1737873433972,80.9,258.36,258.33,1.0]
[1737873434151,80.9,258.34,258.33,1.0]
[1737873437964,23.776884,258.33,258.28,1.0]
[1737873438169,80.9,258.32,258.26,1.0]
[1737873438362,23.776884,258.31,258.24,1.03]
[1737873438876,3.8716,258.29,258.24,1.03]
[1737873439260,23.776884,258.27,258.24,0.03]
[1737873439488,23.776884,258.25,258.24,0.03]
[1737873439987,20.0,258.25,258.24,0.03]
[1737873440991,20.0,258.25,258.24,1.03]
[1737873441194,27.648684,258.28,258.24,1.03]
[1737873445086,27.648684,258.28,258.24,0.03]
[1737873445688,27.648684,258.28,258.24,1.03]
[1737873445860,27.648684,258.28,258.24,0.03]
[1737873447196,27.648684,258.28,258.24,0.009711]
[1737873452374,20.0,258.25,258.24,0.009711]
[1737873456193,27.648684,258.28,258.24,1.009711]
[1737873471297,27.648684,258.28,258.24,0.009711]
[1737873472393,27.711684,258.28,258.24,1.009711]
[1737873473312,27.711684,258.28,258.24,0.009711]
[1737873474720,27.711684,258.28,258.24,1.009711]
[1737873476426,27.711684,258.28,258.24,0.009711]
[1737873476942,20.0,258.25,258.24,0.009711]
[1737873477941,23.8722,258.25,258.24,0.009711]
[1737873480044,3.872,258.27,258.25,1.0]
[1737873481242,3.872,258.27,258.24,0.009711]
[1737873484042,3.872,258.27,258.25,1.0]
[1737873487623,80.9,258.26,258.25,1.0]
[1737873491063,0.063,258.28,258.27,1.0]
[1737873491963,3.9348,258.28,258.25,1.0]
[1737873493468,20.0,258.27,258.25,1.0]
[1737873493673,20.0,258.27,258.24,0.009711]
[1737873494578,3.872,258.26,258.25,1.0]
[1737873495951,20.0,258.27,258.25,1.0]
[1737873496156,3.9348,258.28,258.27,1.0]
[1737873497287,23.776884,258.27,258.24,1.009711]
[1737873497575,23.776884,258.27,258.24,0.009711]
[1737873497779,20.0,258.25,258.24,0.009711]
[1737873499377,23.8722,258.25,258.24,0.009711]
[1737873500780,47.649084,258.25,258.24,0.009711]
[1737873505685,23.776884,258.2,258.18,1.0]
[1737873505891,43.776884,258.18,258.17,0.03]
[1737873507279,20.0,258.14,258.1,0.063]
[1737873508099,20.0,258.11,258.1,0.063]
[1737873509494,23.8743,258.11,258.1,0.063]
[1737873510400,3.8743,258.11,258.1,0.063]
[1737873511371,9.6827,258.19,258.1,0.063]
[1737873511372,20.0,258.12,258.1,0.063]
[1737873512472,3.8743,258.11,258.1,0.063]
[1737873515172,9.6827,258.19,258.1,0.063]
[1737873515173,9.6827,258.19,258.11,1.0]
[1737873515374,3.8732,258.18,258.13,1.0]
[1737873517199,43.776884,258.15,258.13,1.0]
[1737873518097,43.776884,258.15,258.11,1.0]
[1737873518302,43.776884,258.15,258.1,0.063]
[1737873519303,3.8738,258.14,258.1,0.063]
[1737873520603,23.776884,258.13,258.1,0.063]
[1737873522600,23.776884,258.12,258.1,0.063]
[1737873522788,23.776884,258.13,258.1,0.063]
[1737873523192,80.9,258.12,258.1,0.063]
[1737873524784,3.8743,258.11,258.1,0.063]
[1737873525907,80.9,258.12,258.11,1.0]
[1737873529108,20.0,258.15,258.11,1.0]
[1737873529319,23.776884,258.14,258.11,1.0]
[1737873529608,23.776884,258.12,258.1,0.063]
[1737873531617,27.651184,258.11,258.1,0.063]
[1737873532110,3.8741,258.13,258.12,1.0]
[1737873532411,3.8738,258.15,258.12,1.0]
[1737873535107,80.9,258.14,258.12,1.0]
[1737873535315,84.7739,258.14,258.12,1.0]
[1737873535709,80.9,258.14,258.12,1.0]
[1737873536890,84.7738,258.14,258.12,1.0]
[1737873537304,84.7738,258.14,258.1,1.063]
[1737873541091,84.7741,258.13,258.1,1.063]
[1737873543117,84.7741,258.13,258.1,0.063]
[1737873543316,20.0,258.11,258.1,0.063]
[1737873543491,23.776884,258.12,258.1,0.063]
[1737873545490,3.8743,258.11,258.1,0.063]
[1737873545711,23.8743,258.11,258.1,1.063]
[1737873546521,3.8743,258.11,258.1,1.063]
[1737873546698,84.7741,258.13,258.12,1.0]
[1737873547195,3.8741,258.13,258.12,1.0]
[1737873547731,0.063,258.17,258.12,1.0]
[1737873547894,3.8736,258.16,258.15,1.0]
[1737873550131,0.063,258.17,258.15,1.0]
[1737873550499,0.063,258.17,258.16,1.6425]
[1737873555723,0.063,258.17,258.15,1.0]
[1737873556418,80.9,258.16,258.15,1.0]
[1737873558620,3.8737,258.15,258.13,1.0]
[1737873559947,3.8737,258.15,258.11,1.0]
[1737873561746,23.839884,258.17,258.11,1.0]
[1737873561747,3.874,258.13,258.11,1.0]
[1737873561956,3.874,258.13,258.1,0.063]
[1737873562255,80.9,258.12,258.1,0.063]
[1737873564060,108.551184,258.11,258.1,0.063]
[1737873567765,27.651184,258.11,258.1,0.063]
[1737873579746,3.8743,258.11,258.1,1.063]
[1737873579947,3.8735,258.16,258.14,1.0]
[1737873580166,0.063,258.17,258.14,1.0]
[1737873580481,3.9364,258.17,258.14,1.0]
[1737873580775,47.713284,258.17,258.16,1.0]
[1737873581660,0.063,258.17,258.16,1.0]
[1737873584792,23.839884,258.17,258.12,1.0]
[1737873584975,20.0,258.14,258.12,1.0]
[1737873589297,3.9365,258.17,258.16,1.0]
[1737873590877,0.063,258.17,258.16,1.0]
[1737873598130,0.063,258.17,258.16,2.5981]
[1737873609446,0.063,258.17,258.16,3.5981]
[1737873610735,0.063,258.17,258.16,3.9853245]
[1737873610936,0.063,258.17,258.16,33.9853245]
[1737873611349,0.063,258.17,258.16,33.5981]
[1737873611842,0.063,258.17,258.16,33.6281]
[1737873617732,0.063,258.17,258.16,3.6281]
[1737873620851,0.063,258.17,258.16,33.6281]
[1737873626464,0.063,258.17,258.16,31.03]
[1737873627067,0.063,258.17,258.16,1.03]
[1737873633097,0.063,258.17,258.16,2.03]
[1737873634771,0.063,258.26,258.25,1.0]
[1737873636896,0.063,258.26,258.25,4.8722]
[1737873637687,0.063,258.26,258.25,5.8722]
[1737873640084,0.063,258.26,258.25,6.8722]
[1737873641937,0.063,258.26,258.25,36.8722]
[1737873644241,0.063,258.26,258.25,6.8722]
[1737873645541,0.063,258.26,258.25,33.249084]
[1737873645542,0.0001,258.26,258.25,33.249084]
[1737873646222,0.063,258.28,258.27,23.0]
[1737873646529,80.9,258.36,258.33,1.0]
[1737873646737,80.9,258.41,258.33,1.0]
[1737873647641,80.9,258.41,258.33,4.871]
[1737873647842,0.063,258.43,258.33,4.871]
[1737873648142,0.063,258.43,258.33,29.03487756]
[1737873648837,0.063,258.43,258.33,59.03487756]
[1737873649139,80.9,258.41,258.33,31.38699356]
[1737873649323,3.87,258.4,258.33,31.0]
[1737873649523,84.7698,258.41,258.33,31.0]
[1737873649948,80.9,258.41,258.33,1.0]
[1737873650132,3.8702,258.39,258.33,1.0]
[1737873650741,3.8703,258.38,258.33,1.0]
[1737873659861,80.9,258.37,258.33,1.0]
[1737873665439,10.342,258.35,258.33,1.0]
[1737873668272,10.342,258.35,258.31,1.0]
[1737873668273,3.871,258.33,258.31,1.0]
[1737873668457,3.871,258.33,258.29,1.0]
[1737873668772,23.776884,258.32,258.29,1.0]
[1737873669573,104.676884,258.32,258.29,1.0]
[1737873669879,3.8714,258.3,258.29,1.0]
[1737873672275,80.9,258.31,258.29,1.0]
[1737873674974,80.9,258.3,258.29,1.0]
[1737873680699,3.8713,258.31,258.29,1.0]
[1737873682391,23.839884,258.34,258.29,1.0]
[1737873682604,3.871,258.33,258.31,1.0]
[1737873683797,3.9338,258.34,258.33,1.0]
[1737873689205,0.063,258.34,258.33,1.0]
[1737873691726,0.063,258.34,258.31,1.0]
[1737873692721,80.9,258.33,258.31,1.0]
[1737873693015,84.771,258.33,258.31,1.0]
[1737873693431,80.9,258.32,258.31,1.0]
[1737873698718,0.063,258.34,258.31,1.0]
[1737873699429,0.063,258.34,258.33,1.0]
[1737873701422,0.063,258.34,258.31,1.0]
[1737873701623,3.934,258.34,258.31,1.0]
[1737873702331,3.934,258.34,258.33,1.0]
[1737873702915,0.063,258.34,258.33,1.0]
[1737873703627,3.871,258.33,258.31,1.0]
[1737873704812,3.871,258.33,258.29,1.0]
[1737873705143,104.676884,258.32,258.29,1.0]
[1737873706817,23.776884,258.3,258.27,1.03]
[1737873707140,23.776884,258.28,258.27,1.03]
[1737873707433,23.776884,258.28,258.27,0.03]
[1737873709535,27.648584,258.28,258.27,0.03]
[1737873711043,20.0,258.3,258.29,1.0]
[1737873711727,23.8714,258.3,258.29,1.0]
[1737873712642,23.8714,258.3,258.27,0.03]
[1737873717471,23.776884,258.29,258.27,1.03]
[1737873717643,27.648584,258.28,258.27,1.03]
[1737873726978,0.063,258.32,258.27,1.03]
[1737873727186,0.063,258.32,258.31,1.0]
[1737873729988,0.063,258.32,258.29,1.0]
[1737873730781,3.9342,258.32,258.29,1.0]
[1737873731380,80.9,258.31,258.3,1.0]
[1737873732611,80.963,258.31,258.3,1.0]
[1737873737112,0.063,258.31,258.3,1.0]
[1737873737797,0.063,258.31,258.28,1.0]
[1737873739213,0.063,258.31,258.27,0.03]
[1737873739214,0.063,258.31,258.3,1.0]
[1737873739926,0.063,258.31,258.3,4.8714]
[1737873741211,0.063,258.31,258.3,1.0]
[1737873741411,23.776884,258.41,258.3,1.0]
[1737873741724,23.776884,258.37,258.29,1.0]
[1737873742017,23.776884,258.37,258.27,1.03]
[1737873743197,23.776884,258.35,258.27,1.03]
[1737873744006,80.9,258.34,258.27,1.03]
[1737873744406,23.776884,258.32,258.27,1.03]
[1737873746727,23.776884,258.32,258.29,1.0]
[1737873748434,80.9,258.34,258.32,1.0]
[1737873749107,80.9,258.33,258.32,1.0]
[1737873749432,80.9,258.33,258.3,1.0]
[1737873751419,104.676884,258.33,258.32,1.0]
[1737873755011,23.776884,258.33,258.32,1.0]
[1737873755738,0.063,258.37,258.34,1.0]
[1737873755940,80.9,258.36,258.34,1.0]
[1737873761036,80.9,258.35,258.34,1.0]
[1737873764041,80.9,258.35,258.34,21.0]
[1737873764241,0.063,258.37,258.36,21.0]
[1737873769853,0.063,258.37,258.36,1.0]
[1737873770052,0.063,258.37,258.36,1.03]
[1737873781566,0.063,258.37,258.36,31.03]
[1737873785470,0.063,258.37,258.36,21.03]
[1737873788570,0.063,258.37,258.36,3.571]
[1737873788773,0.063,258.37,258.36,33.95796715]
[1737873793356,0.063,258.37,258.36,32.571]
[1737873795769,0.063,258.37,258.36,2.571]
[1737873796973,0.063,258.37,258.36,1.03]
[1737873802793,0.063,258.37,258.36,21.03]
[1737873803078,0.063,258.37,258.36,2.03]
[1737873803679,0.063,258.37,258.36,32.03]
[1737873804775,0.063,258.37,258.36,2.03]
[1737873805560,0.063,258.37,258.36,1.03]
[1737873805865,0.063,258.37,258.36,2.03]
[1737873807764,0.063,258.37,258.36,31.03]
[1737873807966,0.063,258.37,258.36,55.806884]
[1737873808171,0.063,258.39,258.38,23.0]
[1737873808482,0.063,258.39,258.38,3.38689336]
[1737873809185,0.063,258.42,258.41,22.0]
[1737873809378,0.063,258.42,258.41,22.38685114]
[1737873809564,0.063,258.42,258.41,2.38685114]
[1737873809761,0.063,258.43,258.42,1.0]
[1737873810088,0.063,258.43,258.42,3.58]
[1737873810269,80.9,258.51,258.44,2.0]
[1737873810578,80.9,258.51,258.44,22.0]
[1737873810783,80.9,258.51,258.44,1.0]
[1737873810984,84.7684,258.51,258.44,1.0]
[1737873811361,84.7684,258.51,258.44,21.0]
[1737873811774,84.7684,258.51,258.44,1.0]
[1737873812986,80.9,258.47,258.44,1.0]
[1737873817377,84.7689,258.47,258.44,1.0]
[1737873818987,10.59537588,258.47,258.44,1.0]
[1737873819185,6.75647588,258.45,258.43,0.03]
[1737873819381,104.676884,258.44,258.43,0.03]
[1737873821098,108.546184,258.44,258.43,0.03]
[1737873822988,35.734684,258.44,258.43,0.03]
[1737873833609,35.734684,258.44,258.43,1.03]
[1737873833610,8.0885,258.44,258.43,1.03]
[1737873833783,0.03,258.45,258.43,1.03]
[1737873834913,0.03,258.45,258.43,0.03]
[1737873837100,3.8992,258.45,258.43,0.03]
[1737873837410,23.776884,258.44,258.43,0.03]
[1737873837707,23.776884,258.4,258.36,0.03]
[1737873838002,80.9,258.39,258.36,0.03]
[1737873838188,104.676884,258.38,258.36,0.0001]
[1737873838388,30.050584,258.37,258.36,0.0001]
[1737873838602,31.02518348,258.37,258.36,0.0001]
[1737873838784,30.050584,258.37,258.36,0.0001]
[1737873839284,33.920984,258.37,258.36,0.0001]
[1737873840609,34.89558348,258.37,258.36,0.0001]
[1737873841107,33.920984,258.37,258.36,0.0001]
[1737873841304,10.1441,258.37,258.36,0.0001]
[1737873841984,33.920984,258.37,258.36,0.0001]
[1737873848612,20.0,258.34,258.3,0.03]
[1737873848809,23.776884,258.32,258.3,0.03]
[1737873849925,43.776884,258.31,258.3,0.03]
[1737873851030,47.648184,258.31,258.3,0.03]
[1737873853624,49.818984,258.28,258.27,0.03]
[1737873855514,53.690684,258.28,258.27,0.03]
[1737873858035,47.648584,258.28,258.27,0.03]
[1737873861134,3.871,258.33,258.28,1.0]
[1737873861514,3.871,258.33,258.3,1.0]
[1737873862219,23.776884,258.35,258.3,1.0]
[1737873862936,23.776884,258.33,258.3,1.0]
[1737873863139,3.8711,258.32,258.3,1.0]
[1737873866139,84.7709,258.34,258.32,1.0]
[1737873867235,27.647984,258.33,258.3,1.0]
[1737873867830,80.9,258.32,258.3,1.0]
[1737873869549,80.9,258.31,258.3,1.0]
[1737873877146,80.9,258.31,258.3,1.03]
[1737873877346,80.963,258.31,258.3,1.03]
[1737873878249,0.063,258.31,258.3,1.03]
[1737873883734,0.063,258.31,258.3,2.03]
[1737873886341,0.063,258.31,258.3,32.03]
[1737873889361,0.063,258.31,258.3,2.03]
[1737873892461,0.063,258.31,258.3,32.03]
[1737873898264,0.063,258.31,258.3,32.41702124]
[1737873898645,0.063,258.35,258.34,22.0]
[1737873900178,0.063,258.35,258.34,5.8708]
[1737873900739,0.063,258.37,258.36,3.0]
[1737873901069,0.063,258.37,258.36,22.38689971]
[1737873901768,0.063,258.37,258.36,33.38689971]
[1737873902068,0.063,258.37,258.36,7.25739971]
[1737873904978,0.063,258.37,258.36,37.25739971]
[1737873905272,0.063,258.37,258.36,34.8705]
[1737873905969,0.063,258.37,258.36,35.8705]
[1737873906175,0.063,258.37,258.36,5.8705]
[1737873907071,0.063,258.37,258.36,1.0]
[1737873911484,0.063,258.37,258.36,0.89454847]
[1737873918860,23.839884,258.37,258.36,0.89454847]
[1737873919691,0.063,258.37,258.36,0.89454847]
[1737873926601,0.063,258.37,258.36,0.92454847]
[1737873927086,23.839884,258.37,258.36,0.92454847]
[1737873927292,30.57070294,258.37,258.36,0.92454847]
[1737873928695,23.839884,258.37,258.36,0.92454847]
[1737873935193,30.57070294,258.37,258.36,0.03]
[1737873937405,30.57070294,258.37,258.36,0.0001]
[1737873938088,38.86590294,258.37,258.36,0.0001]
[1737873938594,39.94595395,258.37,258.36,0.0001]
[1737873940611,39.84050242,258.37,258.36,0.0001]
[1737873941207,38.86590294,258.37,258.36,0.0001]
[1737873941906,15.08901894,258.37,258.36,0.0001]
[1737873943614,38.86590294,258.37,258.36,0.0001]
[1737873945316,32.135084,258.37,258.36,0.0001]
[1737873955503,23.839884,258.37,258.36,0.0001]
[1737873955715,0.063,258.37,258.36,0.0001]
[1737873971171,0.063,258.37,258.36,1.6559]
[1737873971843,0.063,258.37,258.36,31.6559]
[1737873973368,0.063,258.37,258.36,1.6559]
[1737873976874,0.063,258.37,258.36,0.0001]
[1737873982439,0.063,258.37,258.36,20.0001]
[1737873983467,80.9,258.4,258.39,0.89454847]
[1737873983977,80.9,258.4,258.39,4.76464847]
[1737873986674,0.03,258.45,258.39,4.76464847]
[1737873987166,0.03,258.45,258.44,0.89454847]
[1737873991405,23.776884,258.44,258.4,0.89454847]
[1737873991579,23.776884,258.41,258.4,0.89454847]
[1737873994801,10.59727979,258.44,258.43,0.89454847]
[1737873999702,6.72787979,258.44,258.43,0.89454847]
[1737874000001,0.03,258.45,258.43,0.89454847]
[1737874002689,0.03,258.45,258.43,4.76394847]
[1737874004987,0.03,258.45,258.43,5.76394847]
[1737874005184,0.03,258.45,258.43,7.15078563]
[1737874006899,0.03,258.45,258.43,37.15078563]
[1737874009307,0.03,258.45,258.43,7.15078563]
[1737874012310,0.03,258.45,258.43,37.15078563]
[1737874012687,0.03,258.45,258.43,34.76394847]
[1737874013591,0.03,258.45,258.43,35.76394847]
[1737874013784,0.03,258.45,258.43,36.15077086]
[1737874015612,0.03,258.45,258.43,34.76394847]
[1737874017394,0.03,258.45,258.43,4.76394847]
[1737874018115,0.03,258.45,258.43,5.76394847]
[1737874018612,0.03,258.45,258.44,1.38683434]
[1737874020213,0.03,258.45,258.44,31.38683434]
[1737874022210,0.03,258.45,258.44,30.38683434]
[1737874022609,0.03,258.45,258.44,30.0]
[1737874024018,0.03,258.45,258.43,0.89454847]
[1737874026505,0.03,258.45,258.43,4.76394847]
[1737874029499,0.03,258.45,258.44,20.0]
[1737874031126,0.03,258.45,258.43,4.76394847]
[1737874039033,0.03,258.45,258.43,24.76394847]
[1737874045319,0.03,258.45,258.43,4.76394847]
[1737874045521,0.03,258.45,258.43,0.89454847]
[1737874054921,80.9,258.44,258.43,0.89454847]
[1737874058456,30.50476379,258.44,258.43,0.89454847]
[1737874069043,23.776884,258.42,258.41,0.89454847]
[1737874082385,0.063,258.44,258.43,0.89454847]
[1737874088087,34.43716379,258.44,258.41,0.89454847]
[1737874088293,30.50476379,258.42,258.41,0.89454847]
[1737874093693,6.72787979,258.42,258.41,0.89454847]
[1737874094072,6.79087979,258.42,258.41,0.89454847]
[1737874098897,0.063,258.42,258.41,0.89454847]
[1737874116114,6.79087979,258.42,258.41,0.89454847]
[1737874117913,0.063,258.42,258.41,0.89454847]
[1737874207378,0.063,258.42,258.41,1.89454847]
[1737874210484,0.063,258.42,258.41,25.67143247]
[1737874210686,0.063,258.42,258.41,26.67143247]
[1737874211067,0.063,258.42,258.41,56.67143247]
[1737874211795,0.0001,258.42,258.41,56.67143247]
[1737874212465,0.0001,258.42,258.41,30.89454847]
[1737874213864,0.0001,258.42,258.41,0.89454847]
[1737874214192,0.0001,258.42,258.41,20.89454847]
[1737874214795,0.0001,258.42,258.41,46.0583371]
[1737874214968,0.0001,258.42,258.41,51.2814531]
[1737874215170,0.0001,258.42,258.41,50.89454847]
[1737874217393,0.0001,258.42,258.41,0.89454847]
[1737874223879,6.6273,258.42,258.41,0.89454847]
[1737874224085,6.6273,258.42,258.37,0.03]
[1737874224086,6.6273,258.42,258.39,0.89454847]
[1737874224285,6.72787979,258.41,258.39,0.89454847]
[1737874224879,6.6273,258.42,258.41,0.89454847]
[1737874226804,0.0001,258.42,258.41,0.89454847]
[1737874231384,3.8697,258.42,258.41,0.89454847]
[1737874236113,20.0,258.44,258.41,0.89454847]
[1737874236409,50.50476379,258.43,258.37,0.03]
[1737874236602,6.72787979,258.38,258.37,0.03]
[1737874238311,13.23697979,258.38,258.37,0.03]
[1737874238913,17.10717979,258.38,258.37,0.03]
[1737874241523,40.88406379,258.38,258.37,0.03]
[1737874241695,40.88406379,258.38,258.36,0.0001]
[1737874241696,17.10717979,258.38,258.33,0.03]
[1737874241928,6.72787979,258.34,258.33,0.03]
[1737874243219,31.47936327,258.34,258.33,0.0001]
[1737874243622,35.35016327,258.34,258.33,0.0001]
[1737874243797,43.42836327,258.34,258.33,0.0001]
[1737874245431,42.45376379,258.34,258.33,0.0001]
[1737874249130,17.10777979,258.34,258.33,0.0001]
[1737874251226,17.17077979,258.34,258.33,0.0001]
[1737874253951,40.94766379,258.34,258.33,0.0001]
[1737874256467,24.75148348,258.33,258.32,0.0001]
[1737874256747,51.66300264,258.33,258.32,0.0001]
[1737874258229,24.75148348,258.33,258.32,0.0001]
[1737874258436,23.776884,258.33,258.32,0.0001]
[1737874261683,3.9338,258.34,258.32,0.0001]
[1737874265558,24.85693501,258.33,258.32,0.0001]
[1737874265961,44.85693501,258.31,258.3,0.0001]
[1737874267385,48.72823501,258.31,258.3,0.0001]
[1737874267588,20.0,258.21,258.16,0.03]
[1737874267785,20.0,258.18,258.16,0.03]
[1737874268854,23.8732,258.18,258.16,0.03]
[1737874270985,47.650084,258.18,258.16,0.03]
[1737874272183,48.73013501,258.18,258.16,0.03]
[1737874272352,23.776884,258.17,258.15,0.03]
[1737874273982,27.75583553,258.16,258.15,0.03]
[1737874274162,28.73043501,258.16,258.15,0.03]
[1737874275157,20.0,258.12,258.07,0.03]
[1737874275382,23.776884,258.11,258.07,0.03]
[1737874276891,3.8744,258.1,258.07,0.03]
[1737874277091,104.676884,258.09,258.07,0.03]
[1737874277558,0.97459948,258.07,257.97,0.89454847]
[1737874277760,20.0,258.03,257.97,0.89454847]
[1737874277964,80.9,258.02,257.97,0.89454847]
[1737874278966,80.9,258.02,258.01,0.89454847]
[1737874280099,80.9,258.02,258.01,0.33848767]
[1737874282068,80.9,258.02,257.99,0.33848767]
[1737874283470,80.9,258.02,257.97,0.33848767]
[1737874283776,84.7757,258.02,257.95,0.33848767]
[1737874283988,104.676884,258.01,257.95,0.33848767]
[1737874284191,80.9,258.0,257.93,0.33848767]
[1737874284900,3.8761,257.99,257.95,0.33848767]
[1737874288468,3.8761,257.99,257.93,0.33848767]
[1737874289695,80.9,257.98,257.93,0.33848767]
[1737874290005,84.7763,257.98,257.93,0.33848767]
[1737874291405,80.9,257.98,257.97,0.33848767]
[1737874307122,0.063,258.01,257.97,0.33848767]
[1737874307413,0.063,258.01,258.0,0.33848767]
[1737874308409,0.063,258.01,258.0,20.33848767]
[1737874308613,0.063,258.01,258.0,24.21438767]
[1737874308804,0.063,258.01,258.0,4.21438767]
[1737874310021,0.063,258.11,258.1,0.33848767]
[1737874346923,3.9373,258.11,258.08,0.33848767]
[1737874349953,3.9373,258.11,258.06,0.33848767]
[1737874350264,80.9,258.1,258.04,0.33848767]
[1737874350570,80.9,258.09,258.06,0.33848767]
[1737874351751,3.8747,258.08,258.06,0.33848767]
[1737874355057,80.9,258.07,258.06,0.33848767]
[1737874360963,3.9376,258.09,258.06,0.33848767]
[1737874363767,0.063,258.09,258.08,0.33848767]
[1737874367095,80.963,258.09,258.08,0.33848767]
[1737874376401,3.8747,258.08,258.03,0.33848767]
[1737874376601,80.9,258.07,258.01,0.36848767]
[1737874376771,6.3816,258.06,258.01,0.03]
[1737874377309,80.9,258.05,258.01,0.03]
[1737874378611,3.8753,258.04,258.01,0.03]
[1737874378780,80.9,258.03,258.01,0.03]
[1737874380186,3.8756,258.02,258.01,0.36848767]
[1737874380576,3.8756,258.02,258.01,0.03]
[1737874382305,20.0,258.02,258.01,0.03]
[1737874384727,23.8756,258.02,258.01,0.03]
[1737874386314,3.8756,258.02,258.01,0.03]
[1737874387711,20.0,258.03,258.01,0.03]
[1737874389318,3.8756,258.02,258.01,0.03]
[1737874392217,6.3816,258.06,258.02,0.33848767]
[1737874392516,3.8754,258.04,258.02,0.33848767]
[1737874392721,23.8747,258.08,258.02,0.33848767]
[1737874395213,23.8747,258.08,258.01,0.03]
[1737874395214,23.8747,258.08,258.06,0.33848767]
[1737874395393,3.8745,258.1,258.06,0.33848767]
[1737874396318,80.9,258.07,258.06,0.33848767]
[1737874397399,80.963,258.11,258.08,0.33848767]
[1737874397914,0.063,258.11,258.08,0.33848767]
[1737874403208,0.063,258.11,258.08,4.21318767]
[1737874404123,0.063,258.11,258.08,0.33848767]
[1737874405623,3.9374,258.11,258.08,0.33848767]
[1737874407329,0.063,258.11,258.08,0.33848767]
[1737874410239,0.063,258.11,258.08,24.11537167]
[1737874414238,0.063,258.11,258.08,54.11537167]
[1737874417110,0.063,258.11,258.08,55.11537167]
[1737874418239,0.063,258.11,258.08,54.11537167]
[1737874424022,0.063,258.11,258.08,30.33848767]
[1737874424743,0.063,258.11,258.08,0.33848767]
[1737874427148,80.9,258.1,258.08,0.33848767]